Cogmind - Beta 16.1 @@@ ROGUE MODE // 2026.02.20 @ 16:31:18 Player: GrumpyTiger Result: Destroyed by YI-UF0 with YI-UF0's Doublenader Performance ------------- Evolutions (0) 0 Regions Visited (2) 400 Robots Destroyed (21) 105 Value Destroyed (360) 360 Prototype IDs (4) 80 Alien Tech Used (0) 0 Bonus (0) 0 TOTAL SCORE: 945 Bonus ------- None Cogmind --------- Core Integrity 0/250 Matter 229/300 Energy 68/100 System Corruption 0% Temperature Cool (0) Movement Core (100) Ox1 Location -10/Mines Parts ------- > --- POWER (1) -------- (None) > --- PROPULSION (2) --- (None) > --- UTILITY (2) ------ ECM Suite > --- WEAPON (2) ------- Small Laser Makeshift Hammer > --- INVENTORY (5) ---- Small Storage Unit Signal Interpreter Improved Terrain Scanner Transport Network Coupler Datajack Peak State ------------ > --- POWER ------------ Ion Engine > --- PROPULSION ------- Aluminum Leg Aluminum Leg > --- UTILITY ---------- Improved Heat Sink ECM Suite > --- WEAPON ----------- Small Laser Makeshift Hammer > --- INVENTORY -------- Small Storage Unit Signal Interpreter Improved Terrain Scanner Transport Network Coupler Datajack [Rating: 12] Favorites ----------- Power Ion Engine Engine Ion Engine Propulsion Aluminum Leg Leg Aluminum Leg Utility ECM Suite Device ECM Suite Weapon Assault Rifle Energy Gun Small Laser Ballistic Gun Assault Rifle Impact Weapon Makeshift Hammer Special Melee Weapon Datajack Build | -11 -10 -10 ------- Run | Yrd Mat Min Slots Evolved . | . . . Power . | . . . Propulsion . | . . . Utility . | . . . Weapon . | . . . Parts Attached 18 | 7 9 2 Power 2 | 1 1 . Engine 2 | 1 1 . Core . | . . . Reactor . | . . . Propulsion 4 | 2 2 . Treads . | . . . Leg 4 | 2 2 . Wheel . | . . . Hover . | . . . Flight . | . . . Utility 7 | 2 4 1 Device 7 | 2 4 1 Storage . | . . . Processor . | . . . Hackware . | . . . Protection . | . . . Artifact . | . . . Weapon 5 | 2 2 1 Energy Gun 2 | 1 1 . Energy Cannon . | . . . Ballistic Gun 1 | 1 . . Ballistic Cannon . | . . . Launcher . | . . . Special Weapon . | . . . Impact Weapon 1 | . . 1 Slashing Weapon . | . . . Piercing Weapon . | . . . Special Melee Weapon 1 | . 1 . Unidentified Prototypes . | . . . Parts Lost 5 | . 1 4 Power 1 | . . 1 Propulsion 2 | . . 2 Utility 1 | . . 1 Weapon 1 | . 1 . Highest Loss Streak 4 | . 1 4 To Critical Strikes . | . . . Average Backups 3 | . 3 5 Power . | . . . Propulsion . | . . . Utility 2 | . 3 4 Weapon . | . . . Tool/Special . | . . . Unused Backups 4 | . 1 3 Power . | . . . Propulsion . | . . . Utility 4 | . 1 3 Weapon . | . . . Tool/Special . | . . . Average Slot Usage (%) 98 | . 98 97 Engine 13 | . 14 13 Leg 27 | . 27 27 Device 27 | . 27 26 Energy Gun 13 | . 13 14 Ballistic Gun 11 | . 12 10 Special Melee Weapon 1 | . 2 . Peak Build Rating 12 | 9 9 12 Average Rating 7 | 5 7 9 On Entrance 5 | . 9 7 Avg Prop Armor Cover (%) . | . . . Naked Turns . | . . . Heaviest Build 12 | 11 12 12 Greatest Support 20 | 20 20 20 Greatest Overweight (x) 1 | . . 1 Average Overweight (x) . | . . . Largest Inventory Capacity 5 | 5 5 5 Average Capacity 5 | 5 5 5 Most Carried 5 | 4 5 5 Average Carried 3 | . 4 5 Final Capacity 5 | 5 5 5 Final Carried 5 | . 5 5 Class Distribution -------------------- 77% | Mutant 22% | Scavenger-Mutant Dominant Class ---------------- Mutant | -10/Materials Scavenger-Mutant | -10/Mines Resources | -11 -10 -10 ----------- Run | Yrd Mat Min Matter Collected 549 | 279 170 100 Remotely . | . . . Salvage Created 578 | 115 361 102 Parts 39 | 5 31 3 Haulers Intercepted . | . . . Recyclers Shooed 1 | 1 . . Parts Field Recycled . | . . . Retrieved Matter . | . . . Parts Self-Destructed . | . . . Prevented . | . . . Parts Restored . | . . . Kills | -11 -10 -10 ------- Run | Yrd Mat Min Combat Hostiles Destroyed 15 | . 13 2 Guns 15 | . 13 2 Classes Destroyed 7 | 2 5 . Worker 1 | . 1 . Tunneler 2 | 2 . . Recycler 1 | 1 . . Operator 1 | . 1 . Watcher 1 | . 1 . Swarmer 9 | . 9 . Grunt 6 | . 4 2 Best Kill Streak 4 | 2 4 2 Combat Bots Only 3 | . 3 2 Max Kills in Single Turn 2 | 1 2 1 Gunslinging . | . . . Exploded . | . . . Melee . | . . . Uniques/NPCs Destroyed . | . . . Combat | -11 -10 -10 -------- Run | Yrd Mat Min Hostile Shots Fired 91 | . 62 29 Missed 30 | . 23 7 Hits 61 | . 39 22 Projectile 61 | . 39 22 AOE 15 | . . 15 Damage Taken 988 | . 408 580 Core 266 | . 82 184 Absorbed by Shields . | . . . Regen/Repaired (Parts) 104 | . 104 . Core Remaining (%) 100 | 100 . . Volleys Fired 67 | 7 48 12 Largest 2 | 2 2 2 Hottest 70 | 70 70 60 Shots Fired 111 | 10 80 21 Gun 111 | 10 80 21 Cannon . | . . . Launcher . | . . . Special . | . . . Kinetic 55 | 3 43 9 Thermal 56 | 7 37 12 Explosive . | . . . Electromagnetic . | . . . Robot Hit Streak 9 | 4 8 9 Robot Miss Streak 5 | 1 5 2 Penetration Max . | . . . Secondary Targets 4 | . 4 . Max Gunslinging Chain 1 | . 1 . Shots Hit Robots 70 | 7 50 13 Core Hits 30 | 4 20 6 Critical Kills . | . . . Critical Parts Destroyed . | . . . Critical Strikes 3 | . 3 . Burn 3 | . 3 . Melee Attacks 11 | . 11 . Impact . | . . . Slashing . | . . . Piercing . | . . . Sneak Attacks 2 | . 2 . Combat Hostiles . | . . . Follow-up Attacks . | . . . Damage Inflicted 798 | 84 532 182 Guns 798 | 84 532 182 Cannons . | . . . Explosions . | . . . Melee . | . . . Ramming . | . . . Kinetic 397 | 10 303 84 Thermal 401 | 74 229 98 Explosive . | . . . Electromagnetic . | . . . Impact . | . . . Slashing . | . . . Piercing . | . . . Highest Corruption . | . . . Average Corruption . | . . . Corruption Purged . | . . . Corruption Blocked . | . . . Overload Shots . | . . . Overflow Damage . | . . . Projectiles . | . . . Explosions . | . . . Melee . | . . . Knockbacks . | . . . Impact . | . . . Kinetic . | . . . Secondary . | . . . Self-Inflicted Damage . | . . . Shots . | . . . Rammed . | . . . Targets Rammed . | . . . Kicked . | . . . Crushed . | . . . Highest Temperature 66 | 18 66 5 Average Temperature 19 | 9 23 5 Received Heat Transfer 192 | . 108 84 Siege Activations . | . . . Martial Activations . | . . . Shielding Activations . | . . . Robots Disrupted . | . . . Combat Hostiles . | . . . Robots Corrupted . | . . . Combat Hostiles . | . . . Parts Fried . | . . . Impact Corruptions . | . . . Robots Melted . | . . . Combat Hostiles . | . . . Parts Melted 5 | 2 2 1 Heat Transferred 1348 | 222 901 225 Parts Sabotaged . | . . . Parts Stolen . | . . . Parts Stripped . | . . . Power Chain Reactions . | . . . Alert | -11 -10 -10 ------- Run | Yrd Mat Min Maximum Alert Level . | . . . Low Security (%) 100 | 100 100 100 Level 1 . | . . . Level 2 . | . . . Level 3 . | . . . Level 4 . | . . . Level 5 . | . . . High Security . | . . . Max Security . | . . . Peak Influence 101 | 5 101 50 Initial . | . . . Average 30 | . 38 9 Influence Increases 424 | 15 359 50 Destroy 0b10 Robot/C 300 | . 260 40 Destroy 0b10 Robot/NC 30 | 15 15 . Destroy Leader 62 | . 52 10 Successful Hack 29 | . 29 . Destroy Structure 3 | . 3 . Influence Decreases 424 | 15 359 50 Time Decay 414 | 15 349 50 Lost Part 10 | . 10 . Squads Dispatched 2 | . 2 . Investigation 1 | . 1 . Extermination . | . . . Reinforcement 1 | . 1 . Assault . | . . . Garrison . | . . . Intercept . | . . . Searches Triggered . | . . . Construction Impeded . | . . . Haulers Reinforced . | . . . Active Scanning Responses . | . . . Cargo Convoy Interrupts . | . . . Stealth | -11 -10 -10 --------- Run | Yrd Mat Min Distress Signals 1 | . 1 . Communications Jammed . | . . . Distress Signals . | . . . Times Spotted 25 | . 21 4 Peak Tracking Total 4 | . 4 2 Tactical Retreats 1 | . . 1 Traps | -11 -10 -10 ------- Run | Yrd Mat Min Traps Triggered 1 | . 1 . Indirectly . | . . . Trap Hack Attempts . | . . . Triggered . | . . . Disarmed 1 | . 1 . Reprogrammed . | . . . Reused . | . . . Traps Extracted . | . . . Installed . | . . . Triggered . | . . . Machines | -11 -10 -10 ---------- Run | Yrd Mat Min Machines Disabled . | . . . Max in Single Turn . | . . . Machines Repaired . | . . . Machines Dismantled . | . . . Machines Sabotaged . | . . . Overloaded Fab Kills . | . . . Hacking | -11 -10 -10 --------- Run | Yrd Mat Min Machines Accessed 5 | . 5 . Terminals 4 | . 4 . Fabricators . | . . . Repair Stations 1 | . 1 . Recycling Units . | . . . Scanalyzers . | . . . Garrison Access . | . . . Total Hacks 15 | . 15 . Successful 10 | . 10 . Failed 5 | . 5 . Catastrophic . | . . . Database Lockouts . | . . . Manual . | . . . Terminals 10 | . 10 . Fabricators . | . . . Repair Stations 5 | . 5 . Recycling Units . | . . . Scanalyzers . | . . . Garrison Access . | . . . Terminal Hacks 6 | . 6 . Robot Analysis 1 | . 1 . Prototype ID Bank 2 | . 2 . Locate Traps 1 | . 1 . Disarm Traps 1 | . 1 . Registered Components 1 | . 1 . Fabricator Hacks . | . . . Repair Station Hacks 4 | . 4 . Scan Component 2 | . 2 . Repair 2 | . 2 . Recycling Unit Hacks . | . . . Scanalyzer . | . . . Garrison Access Hacks . | . . . Unauthorized Hacks . | . . . Terminals . | . . . Fabricators . | . . . Repair Stations . | . . . Recycling Units . | . . . Scanalyzers . | . . . Garrison Access . | . . . Data Cores Recovered . | . . . Used . | . . . Hacking Detections 4 | . 4 . Full Trace Events 2 | . 2 . Feedback Events . | . . . Feedback Blocked . | . . . Robot Schematics Acquired . | . . . Robots Built . | . . . Authchips . | . . . Time . | . . . Total Robot Build Rating . | . . . Part Schematics Acquired . | . . . Parts Built . | . . . Authchips . | . . . Time . | . . . Total Part Build Rating . | . . . Part Studies Acquired . | . . . Parts Repaired 2 | . 2 . Time 52 | . 52 . Parts Recycled . | . . . Recycled Matter . | . . . Retrieved Matter . | . . . Retrieved Components . | . . . Parts Scanalyzed . | . . . Part Schematics Acquired . | . . . Parts Damaged . | . . . Bothacking | -11 -10 -10 ------------ Run | Yrd Mat Min Used RIF Installer . | . . . Robots Hacked 4 | . 4 . Non-combat 3 | . 3 . Combat 1 | . 1 . Robot Hacks Applied 6 | . 6 . parse_system 4 | . 4 . no_distress 2 | . 2 . Relay Couplers Released . | . . . Fabnet Peak Effective % . | . . . Robots Rewired . | . . . Allies Hacked . | . . . Hacks Repelled . | . . . Allies | -11 -10 -10 -------- Run | Yrd Mat Min Total Allies . | . . . Largest Group . | . . . Highest-Rated Group . | . . . Highest-Rated Ally . | . . . Total Orders . | . . . Ally Attacks . | . . . Total Damage . | . . . Kills . | . . . Allies Corrupted . | . . . Allies Melted . | . . . Intel | -11 -10 -10 ------- Run | Yrd Mat Min Active Infowar (turns) 1468 | 50 1166 252 Terrain 183 | 50 133 . Seismic 150 | 38 112 . ECM 1285 | . 1033 252 Robot Analysis Total 1 | . 1 . Derelict Logs Recovered . | . . . Drone Launches . | . . . Drone Recoveries . | . . . Exploration | -11 -10 -10 ------------- Run | Yrd Mat Min Turns Passed 1536 | 118 1166 252 Spaces Moved 1018 | 81 757 180 Core 17 | 13 . 4 Treads . | . . . Legs 1001 | 68 757 176 Wheels . | . . . Hover . | . . . Flight . | . . . Fastest Speed 50 | 50 120 100 Average Speed 119 | 108 120 119 Slowest Speed 120 | 120 120 120 Overloaded Moves . | . . . Propulsion Burnouts . | . . . Robots Hopped . | . . . Potential Cave-ins . | . . . Cave-ins Triggered . | . . . Exploration Rate (%) 41 | 3 86 35 Regions Visited 2 Branch Regions 1 Pre-discovered Areas . | . . . Known Exits Taken . | . . . Unknown Exits Taken 2 | 1 1 . Scrap Searched 1 | . . 1 Spaces Dug . | . . . Terrain Destroyed . | . . . Melee . | . . . Projectile . | . . . AOE . | . . . Terrain Rammed . | . . . Walls Destroyed . | . . . Machines Disabled . | . . . Actions | -11 -10 -10 --------- Run | Yrd Mat Min Total 1221 | 101 924 196 Wait 70 | . 70 . Move 1016 | 80 756 180 Hop . | . . . Pick Up 18 | 7 11 . Fast Attach 7 | . 5 2 Attach 8 | 7 1 . Detach 1 | . 1 . Swap 13 | . 13 . Drop 10 | . 8 2 Fire 67 | 7 48 12 Melee 11 | . 11 . Ram . | . . . Kick . | . . . Crush . | . . . Escape Stasis . | . . . Rewire . | . . . Trap . | . . . Miscellaneous . | . . . Route ------- -11/Scrapyard -10/Materials (discovered 4 exits: [*Mat x3] / [*Min]) -10/Mines (discovered 1 exit: [*Mat]) History --------- Turn | Location | Event 3 | -11/Scrapyard | Discovered new exit (range 16) 119 | -11/Scrapyard | Entered Materials 330 | -10/Materials | Discovered new exit (range 3) 458 | -10/Materials | Discovered new exit (range 4) 848 | -10/Materials | Repaired Aluminum Leg 869 | -10/Materials | Build established: Mutant 876 | -10/Materials | Repaired Aluminum Leg 893 | -10/Materials | Discovered new exit (range 8) 922 | -10/Materials | Discovered new exit (range 16) 1285 | -10/Materials | Entered Mines 1288 | -10/Mines | Discovered new exit (range 7) 1466 | -10/Mines | A weapon hastily lodged in a ceiling crevice suddenly fell to the ground 1526 | -10/Mines | Core integrity fell below 50% 1536 | -10/Mines | Core integrity fell below 20% 1537 | -10/Mines | Destroyed by YI-UF0 with YI-UF0's Doublenader Last Messages --------------- Dropped Heat Sink. R-06 Scavenger collects Heat Sink. Acquired Imp. Heat Sink. Searching scrap... Found 64 Matter. Found 45 Matter. Acquired 45 matter. A Mak. Hammer has been hastily shoved under some rubble with a note attached: "Who needs nails when you have Unaware?" Dropped Assault Rifle. Acquired Mak. Hammer. The unstable cave ceiling collapses. R-06 Scavenger destroyed. Aluminum Leg destroyed. Ion Engine destroyed. The unstable cave ceiling collapses. Imp. Heat Sink destroyed. Aluminum Leg destroyed. The unstable cave ceiling collapses. Map ----- +----------------------------------------------------+ | ?????????????????###?????????????????????????????? | | ????????????????# ?????????????????????????????? | | ???????????????# ??????????????????????????????? | | ?????????????## ???????????????????????????????? | | ????????????? #???????????????????????????????? | | ????????????? #???????????????????????????????? | | ????????????? #???????????????????????????????? | | ?????????????# #???????????????????????????????? | | ????????????## #???????????????????????????????? | | ????????????# #????????????????????????????????? | | ????????????#[ #????????????????????????????????? | | ????????????# ##????????????????????????????????? | | ????????????## #?###?????????????????????????????? | | ##???????????# ### ##???????????????????????????? | | ##??????????# ###?????????????????????????? | | #??????????# # ##????????????????????????? | | ############ ##???????????????????????? | | % #???????????????????????? | | ##??????????????????????? | | # ########## # ####??? #??????????????? | | # ##???????????### #?? #??????????????? | | # #????????????### ## ##?????????????? | | # ???????????## $ ###???????????? | | ###??????????## #???????????? | | #???????????# #?????????? | | #???????????# @ % ???????? | | #????????###### g ???????? | | #???????# #### % # ????????? | | #??????# ###### # ##??#####????????? | | #?????? #???## # ##????????????????? | | #?????? ??????# ####### #?????????????????? | | #????## ????????# ###?????? #?????????????????? | | #??### #?????????# ?????????? ?????????????????? | | #?## #??????????# ???????????#????????????????? | | ### ####??###??# ????????????????????????????? | | #??# ?? ????????????????????????????? | | #### ### #??# #??#?????????????????????????????? | | #??####?# #??# #????????????????????????????????? | | ######### #??# #????????????????????????????????? | | #### #????????????????????????????????? | | ########## #????????????????????????????????? | | ?????????###### #????????????????????????????????? | | ?????########## #????????????????????????????????? | | ?????# #????????????????????????????????? | | ?????# ##########????????????????????????????????? | | ?????# #?????????????????????????????????????????? | | ???### #####?????????????????????????????????????? | | ???# #?????????????????????????????????????? | | ???# % #?????????????????????????????????????? | | ???# """ #?????????????????????????????????????? | +----------------------------------------------------+ Best States ------------- Heat Dissipation 39 Energy Generation 10 Energy Capacity 250 Matter Stores 300 Matter Capacity 300 Sight Range 16 Terrain Scan Range 16 Terrain Scan Density 10 ECM Strength 1 Evasion (%) 55 Item Schematics ----------------- None Robot Schematics ------------------ None Fabricated ------------ Nothing Repaired ---------- Aluminum Leg | 37% | -10/Materials Aluminum Leg | 46% | -10/Materials Studied --------- None Alien Tech Used ----------------- None Achievements -------------- Junior Dev Challenges ------------ None Game ------ Seed DroneCountertargetingArmor Manual? 0 Play Time 00:19:15 Cumulative 1.0 hours Start 2026.02.20 @ 16:12:33 End 2026.02.20 @ 16:31:18 Sessions 1 Manual Loads 0 Difficulty Rogue Special Mode None Game No. 5 Rogue 4 Adventurer 1 Explorer 0 Win Type - Total 0 Types 0/0/0/0/0/0/0/0/0/0 Lore% 1 Gallery% 4 Achievement% 6 Wizard Run 0 Options --------- Layout 1 ASCII 0 Keyboard 0 Movement Mouse Keybinds 0 Fullscreen 1 Font 32/SmallcapsGlow Map View 50x35 Zoom Use 0% Tactical HUD 0 Map Filters NONE Filters NONE Steam 1 RUN: 4c1103e5-147c-49d0-a4eb-c3618d216404